[Event "SS Manhem Chess Week 2019 Goteborg Open"]
[Site "Molnlycke kulturhus, Biblioteksgatan 2, Molnlycke, Sweden"]
[Date "2019.08.16"]
[Round "1.1"]
[White "Blomqvist, Erik"]
[Black "Andersson, Kjell-Ake"]
[Result "1-0"]
[TimeControl "15 minutes + 5 seconds per move from move one (Round 1 - 4) / 90 minutes + 30 seconds per move from move one (Round 5 - 8)"]
[WhiteTitle "GM"]
[WhiteFideId "1709437"]
[BlackFideId "1713825"]
[WhiteElo "2507"]
[BlackElo "1922"]

1. e4 {[%clk 00:15:08]} e6 {[%clk 00:15:00]} {[%emt 00:00:10]} 2. d4 {[%clk
00:15:09]} {[%emt 00:00:04]} d5 {[%clk 00:14:58]} {[%emt 00:00:06]} 3. e5
{[%clk 00:15:13]} {[%emt 00:00:02]} c5 {[%clk 00:14:46]} {[%emt 00:00:17]} 4.
c3 {[%clk 00:15:16]} {[%emt 00:00:02]} Nc6 {[%clk 00:14:36]} {[%emt 00:00:15]}
5. Nf3 {[%clk 00:15:18]} {[%emt 00:00:02]} Bd7 {[%clk 00:14:22]} {[%emt
00:00:19]} 6. Be2 {[%clk 00:15:19]} {[%emt 00:00:04]} f6 {[%clk 00:13:42]}
{[%emt 00:00:44]} 7. O-O {[%clk 00:15:09]} {[%emt 00:00:16]} Qc7 {[%clk
00:12:15]} {[%emt 00:01:32]} 8. Bf4 {[%clk 00:15:05]} {[%emt 00:00:09]} f5
{[%clk 00:09:34]} {[%emt 00:02:47]} 9. Nbd2 {[%clk 00:13:01]} {[%emt 00:02:09]}
c4 {[%clk 00:08:45]} {[%emt 00:00:55]} 10. b3 {[%clk 00:12:57]} {[%emt
00:00:09]} cxb3 {[%clk 00:08:39]} {[%emt 00:00:10]} 11. axb3 {[%clk 00:12:55]}
{[%emt 00:00:06]} Nge7 {[%clk 00:08:41]} {[%emt 00:00:04]} 12. h4 {[%clk
00:12:25]} {[%emt 00:00:35]} Ng6 {[%clk 00:08:30]} {[%emt 00:00:16]} 13. Bg3
{[%clk 00:11:59]} {[%emt 00:00:32]} Be7 {[%clk 00:08:16]} {[%emt 00:00:19]} 14.
h5 {[%clk 00:11:54]} {[%emt 00:00:10]} Nf8 {[%clk 00:07:37]} {[%emt 00:00:44]}
15. b4 {[%clk 00:11:18]} {[%emt 00:00:41]} g5 {[%clk 00:06:30]} {[%emt
00:01:12]} 16. hxg6 {[%clk 00:10:44]} {[%emt 00:00:40]} hxg6 {[%clk 00:06:21]}
{[%emt 00:00:13]} 17. Ne1 {[%clk 00:10:41]} {[%emt 00:00:07]} Nh7 {[%clk
00:05:18]} {[%emt 00:01:09]} 18. f4 {[%clk 00:10:39]} {[%emt 00:00:08]} Kf7
{[%clk 00:04:38]} {[%emt 00:00:45]} 19. Nd3 {[%clk 00:10:40]} {[%emt 00:00:04]}
b6 {[%clk 00:04:26]} {[%emt 00:00:17]} 20. Kf2 {[%clk 00:10:26]} {[%emt
00:00:19]} Rag8 {[%clk 00:04:19]} {[%emt 00:00:12]} 21. Rh1 {[%clk 00:09:09]}
{[%emt 00:01:22]} g5 {[%clk 00:03:43]} {[%emt 00:00:42]} 22. Rh5 {[%clk
00:08:41]} {[%emt 00:00:32]} gxf4 {[%clk 00:02:53]} {[%emt 00:00:55]} 23. Bxf4
{[%clk 00:08:44]} {[%emt 00:00:03]} Bg5 {[%clk 00:02:20]} {[%emt 00:00:38]} 24.
Qh1 {[%clk 00:08:37]} {[%emt 00:00:12]} Qd8 {[%clk 00:01:08]} {[%emt 00:01:17]}
25. Rxh7+ {[%clk 00:08:25]} {[%emt 00:00:16]} 1-0

[Event "SS Manhem Chess Week 2019 Goteborg Open"]
[Site "Molnlycke kulturhus, Biblioteksgatan 2, Molnlycke, Sweden"]
[Date "2019.08.16"]
[Round "1.2"]
[White "Alharash, Feras"]
[Black "Hector, Jonny"]
[Result "0-1"]
[TimeControl "15 minutes + 5 seconds per move from move one (Round 1 - 4) / 90 minutes + 30 seconds per move from move one (Round 5 - 8)"]
[BlackTitle "GM"]
[WhiteFideId "7604645"]
[BlackFideId "1700090"]
[WhiteElo "1882"]
[BlackElo "2493"]

1. d4 {[%clk 00:15:07]} {[%emt 00:00:03]} d5 {[%clk 00:15:06]} {[%emt
00:00:02]} 2. Nf3 {[%clk 00:15:10]} {[%emt 00:00:03]} Nf6 {[%clk 00:15:09]}
{[%emt 00:00:02]} 3. c4 {[%clk 00:15:12]} {[%emt 00:00:03]} c6 {[%clk
00:15:12]} {[%emt 00:00:02]} 4. Nc3 {[%clk 00:15:15]} {[%emt 00:00:03]} dxc4
{[%clk 00:15:15]} {[%emt 00:00:02]} 5. a4 {[%clk 00:15:15]} {[%emt 00:00:05]}
Bf5 {[%clk 00:15:17]} {[%emt 00:00:02]} 6. e3 {[%clk 00:15:17]} {[%emt
00:00:03]} e6 {[%clk 00:15:19]} {[%emt 00:00:03]} 7. Bxc4 {[%clk 00:15:15]}
{[%emt 00:00:08]} Bb4 {[%clk 00:15:21]} {[%emt 00:00:03]} 8. O-O {[%clk
00:15:01]} {[%emt 00:00:20]} Nbd7 {[%clk 00:15:23]} {[%emt 00:00:02]} 9. Bd2
{[%clk 00:14:42]} {[%emt 00:00:24]} O-O {[%clk 00:15:01]} {[%emt 00:00:26]} 10.
Ne4 {[%clk 00:14:09]} {[%emt 00:00:39]} Be7 {[%clk 00:14:46]} {[%emt 00:00:19]}
11. Ng3 {[%clk 00:13:59]} {[%emt 00:00:16]} Bg6 {[%clk 00:14:43]} {[%emt
00:00:08]} 12. Nh4 {[%clk 00:13:50]} {[%emt 00:00:15]} Bd6 {[%clk 00:13:47]}
{[%emt 00:00:59]} 13. Nxg6 {[%clk 00:13:52]} {[%emt 00:00:05]} hxg6 {[%clk
00:13:49]} {[%emt 00:00:02]} 14. f3 {[%clk 00:10:40]} {[%emt 00:03:18]} c5
{[%clk 00:12:54]} {[%emt 00:00:59]} 15. Ne4 {[%clk 00:10:06]} {[%emt 00:00:40]}
Nxe4 {[%clk 00:12:36]} {[%emt 00:00:23]} 16. fxe4 {[%clk 00:10:09]} {[%emt
00:00:02]} cxd4 {[%clk 00:12:07]} {[%emt 00:00:33]} 17. exd4 {[%clk 00:10:11]}
{[%emt 00:00:04]} Qh4 {[%clk 00:11:46]} {[%emt 00:00:26]} 18. g3 {[%clk
00:07:10]} {[%emt 00:03:08]} Qxe4 {[%clk 00:11:17]} {[%emt 00:00:33]} 19. Bc3
{[%clk 00:06:44]} {[%emt 00:00:31]} Nb6 {[%clk 00:10:12]} {[%emt 00:01:10]} 20.
Re1 {[%clk 00:05:41]} {[%emt 00:01:08]} Qf5 {[%clk 00:09:38]} {[%emt 00:00:38]}
21. Bd3 {[%clk 00:05:28]} {[%emt 00:00:19]} Qg5 {[%clk 00:09:41]} {[%emt
00:00:02]} 22. Bd2 {[%clk 00:05:12]} {[%emt 00:00:22]} Qf6 {[%clk 00:09:08]}
{[%emt 00:00:37]} 23. Bc3 {[%clk 00:05:02]} {[%emt 00:00:16]} Nd5 {[%clk
00:09:07]} {[%emt 00:00:06]} 24. Qe2 {[%clk 00:04:16]} {[%emt 00:00:51]} Rac8
{[%clk 00:08:51]} {[%emt 00:00:20]} 25. Rf1 {[%clk 00:04:19]} {[%emt 00:00:03]}
Qe7 {[%clk 00:08:41]} {[%emt 00:00:14]} 26. Rac1 {[%clk 00:04:10]} {[%emt
00:00:15]} Bb4 {[%clk 00:08:29]} {[%emt 00:00:17]} 27. Bxb4 {[%clk 00:03:51]}
{[%emt 00:00:25]} Qxb4 {[%clk 00:08:17]} {[%emt 00:00:16]} 28. Rxc8 {[%clk
00:03:05]} {[%emt 00:00:52]} Qxd4+ {[%clk 00:08:17]} {[%emt 00:00:05]} 29. Kh1
{[%clk 00:03:08]} {[%emt 00:00:03]} Rxc8 {[%clk 00:08:17]} {[%emt 00:00:04]} 30.
Bxg6 {[%clk 00:03:02]} {[%emt 00:00:11]} Nf6 {[%clk 00:07:35]} {[%emt
00:00:45]} 31. Bd3 {[%clk 00:02:33]} {[%emt 00:00:35]} Qxa4 {[%clk 00:07:00]}
{[%emt 00:00:40]} 32. Rf4 {[%clk 00:01:37]} {[%emt 00:01:01]} Rc1+ {[%clk
00:06:11]} {[%emt 00:00:53]} 33. Rf1 {[%clk 00:00:53]} {[%emt 00:00:50]} Rxf1+
{[%clk 00:05:54]} {[%emt 00:00:22]} 34. Qxf1 {[%clk 00:00:57]} Qc6+ {[%clk
00:05:57]} {[%emt 00:00:04]} 35. Kg1 {[%clk 00:00:59]} {[%emt 00:00:03]} Qb6+
{[%clk 00:06:00]} {[%emt 00:00:03]} 0-1

[Event "SS Manhem Chess Week 2019 Goteborg Open"]
[Site "Molnlycke kulturhus, Biblioteksgatan 2, Molnlycke, Sweden"]
[Date "2019.08.16"]
[Round "1.3"]
[White "Golubka, Petro"]
[Black "Hamilton, Olov"]
[Result "1-0"]
[TimeControl "15 minutes + 5 seconds per move from move one (Round 1 - 4) / 90 minutes + 30 seconds per move from move one (Round 5 - 8)"]
[WhiteTitle "IM"]
[WhiteFideId "14114224"]
[BlackFideId "1723677"]
[WhiteElo "2479"]
[BlackElo "1874"]

1. e4 {[%clk 00:15:05]} {[%emt 00:00:04]} c5 {[%clk 00:15:09]} {[%emt
00:00:02]} 2. Nf3 {[%clk 00:15:05]} {[%emt 00:00:04]} d6 {[%clk 00:15:12]}
{[%emt 00:00:02]} 3. d4 {[%clk 00:15:07]} {[%emt 00:00:03]} cxd4 {[%clk
00:15:16]} {[%emt 00:00:01]} 4. Nxd4 {[%clk 00:15:11]} {[%emt 00:00:02]} Nf6
{[%clk 00:15:19]} {[%emt 00:00:01]} 5. Nc3 {[%clk 00:15:14]} {[%emt 00:00:01]}
a6 {[%clk 00:15:24]} 6. Bg5 {[%clk 00:15:17]} {[%emt 00:00:02]} Nbd7 {[%clk
00:15:23]} {[%emt 00:00:05]} 7. Bc4 {[%clk 00:15:19]} {[%emt 00:00:03]} Qc7
{[%clk 00:15:06]} {[%emt 00:00:22]} 8. Bb3 {[%clk 00:15:17]} {[%emt 00:00:07]}
e6 {[%clk 00:15:02]} {[%emt 00:00:09]} 9. O-O {[%clk 00:15:14]} {[%emt
00:00:08]} Be7 {[%clk 00:15:00]} {[%emt 00:00:07]} 10. Bxe6 {[%clk 00:15:05]}
{[%emt 00:00:15]} Nc5 {[%clk 00:14:36]} {[%emt 00:00:30]} 11. Bxc8 {[%clk
00:14:58]} {[%emt 00:00:12]} Rxc8 {[%clk 00:14:35]} {[%emt 00:00:05]} 12. Nf5
{[%clk 00:14:50]} {[%emt 00:00:13]} Ne6 {[%clk 00:14:04]} {[%emt 00:00:36]} 13.
Bxf6 {[%clk 00:14:47]} {[%emt 00:00:08]} gxf6 {[%clk 00:13:39]} {[%emt
00:00:30]} 14. Nd5 {[%clk 00:14:47]} {[%emt 00:00:04]} Qxc2 {[%clk 00:13:18]}
{[%emt 00:00:28]} 15. Ndxe7 {[%clk 00:14:46]} {[%emt 00:00:05]} 1-0

[Event "SS Manhem Chess Week 2019 Goteborg Open"]
[Site "Molnlycke kulturhus, Biblioteksgatan 2, Molnlycke, Sweden"]
[Date "2019.08.16"]
[Round "1.4"]
[White "Alfven, Jorgen"]
[Black "Wiedenkeller, Michael"]
[Result "0-1"]
[TimeControl "15 minutes + 5 seconds per move from move one (Round 1 - 4) / 90 minutes + 30 seconds per move from move one (Round 5 - 8)"]
[BlackTitle "IM"]
[WhiteFideId "1715950"]
[BlackFideId "1700146"]
[WhiteElo "1871"]
[BlackElo "2456"]

1. d4 {[%clk 00:15:06]} {[%emt 00:00:02]} Nf6 {[%clk 00:15:03]} {[%emt
00:00:07]} 2. Nf3 {[%clk 00:15:03]} {[%emt 00:00:07]} d5 {[%clk 00:15:00]}
{[%emt 00:00:09]} 3. Bf4 {[%clk 00:14:44]} {[%emt 00:00:24]} Bf5 {[%clk
00:14:30]} {[%emt 00:00:35]} 4. e3 {[%clk 00:14:12]} {[%emt 00:00:37]} e6
{[%clk 00:14:29]} {[%emt 00:00:06]} 5. a3 {[%clk 00:13:41]} {[%emt 00:00:37]}
Be7 {[%clk 00:14:05]} {[%emt 00:00:29]} 6. c4 {[%clk 00:13:36]} {[%emt
00:00:10]} O-O {[%clk 00:13:15]} {[%emt 00:00:56]} 7. Nc3 {[%clk 00:13:32]}
{[%emt 00:00:07]} c6 {[%clk 00:12:56]} {[%emt 00:00:24]} 8. h3 {[%clk
00:13:09]} {[%emt 00:00:27]} h6 {[%clk 00:12:12]} {[%emt 00:00:50]} 9. Bd3
{[%clk 00:13:04]} {[%emt 00:00:11]} dxc4 {[%clk 00:11:59]} {[%emt 00:00:19]} 10.
Bxc4 {[%clk 00:12:43]} {[%emt 00:00:26]} Nd5 {[%clk 00:10:41]} {[%emt
00:01:23]} 11. Bg3 {[%clk 00:11:50]} {[%emt 00:00:58]} Qa5 {[%clk 00:10:15]}
{[%emt 00:00:31]} 12. Bxd5 {[%clk 00:10:55]} {[%emt 00:01:00]} exd5 {[%clk
00:10:08]} {[%emt 00:00:12]} 13. O-O {[%clk 00:10:40]} {[%emt 00:00:20]} Nd7
{[%clk 00:10:05]} {[%emt 00:00:08]} 14. b4 {[%clk 00:10:41]} {[%emt 00:00:04]}
Qd8 {[%clk 00:09:58]} {[%emt 00:00:12]} 15. Re1 {[%clk 00:10:24]} {[%emt
00:00:22]} Re8 {[%clk 00:09:41]} {[%emt 00:00:22]} 16. Qb3 {[%clk 00:10:16]}
{[%emt 00:00:13]} Be6 {[%clk 00:09:20]} {[%emt 00:00:26]} 17. Rac1 {[%clk
00:09:35]} {[%emt 00:00:46]} Nb6 {[%clk 00:09:12]} {[%emt 00:00:14]} 18. Na4
{[%clk 00:09:04]} {[%emt 00:00:35]} Nxa4 {[%clk 00:08:31]} {[%emt 00:00:46]} 19.
Qxa4 {[%clk 00:09:07]} {[%emt 00:00:02]} a5 {[%clk 00:08:11]} {[%emt 00:00:25]}
20. b5 {[%clk 00:09:02]} {[%emt 00:00:09]} cxb5 {[%clk 00:07:48]} {[%emt
00:00:29]} 21. Qxb5 {[%clk 00:09:03]} {[%emt 00:00:04]} Bxa3 {[%clk 00:07:52]}
22. Ra1 {[%clk 00:08:40]} {[%emt 00:00:29]} Bb4 {[%clk 00:07:46]} {[%emt
00:00:10]} 23. Rec1 {[%clk 00:08:43]} {[%emt 00:00:01]} Qd7 {[%clk 00:07:36]}
{[%emt 00:00:16]} 24. Qxd7 {[%clk 00:07:56]} {[%emt 00:00:52]} Bxd7 {[%clk
00:07:39]} {[%emt 00:00:01]} 25. Ne5 {[%clk 00:07:59]} {[%emt 00:00:02]} Bb5
{[%clk 00:07:21]} {[%emt 00:00:24]} 26. Rc7 {[%clk 00:07:39]} {[%emt 00:00:25]}
f6 {[%clk 00:07:01]} {[%emt 00:00:26]} 27. Nd7 {[%clk 00:07:09]} {[%emt
00:00:34]} Bc6 {[%clk 00:06:28]} {[%emt 00:00:38]} 28. Nc5 {[%clk 00:06:30]}
{[%emt 00:00:44]} Rec8 {[%clk 00:05:58]} {[%emt 00:00:35]} 29. Rxc8+ {[%clk
00:05:27]} {[%emt 00:01:08]} Rxc8 {[%clk 00:05:58]} {[%emt 00:00:04]} 30. f3
{[%clk 00:04:49]} {[%emt 00:00:43]} Ra8 {[%clk 00:05:35]} {[%emt 00:00:28]} 31.
Bd6 {[%clk 00:04:07]} {[%emt 00:00:47]} b6 {[%clk 00:05:15]} {[%emt 00:00:26]}
0-1

[Event "SS Manhem Chess Week 2019 Goteborg Open"]
[Site "Molnlycke kulturhus, Biblioteksgatan 2, Molnlycke, Sweden"]
[Date "2019.08.16"]
[Round "1.5"]
[White "Le, Quang Long"]
[Black "Ottgard, Andreas"]
[Result "1-0"]
[TimeControl "15 minutes + 5 seconds per move from move one (Round 1 - 4) / 90 minutes + 30 seconds per move from move one (Round 5 - 8)"]
[WhiteTitle "IM"]
[WhiteFideId "12401749"]
[BlackFideId "1730592"]
[WhiteElo "2411"]
[BlackElo "1868"]

1. Nf3 {[%clk 00:15:04]} {[%emt 00:00:05]} Nf6 {[%clk 00:15:02]} {[%emt
00:00:09]} 2. c4 {[%clk 00:15:04]} {[%emt 00:00:05]} g6 {[%clk 00:14:45]}
{[%emt 00:00:21]} 3. g3 {[%clk 00:14:59]} {[%emt 00:00:10]} Bg7 {[%clk
00:14:44]} {[%emt 00:00:06]} 4. Bg2 {[%clk 00:15:03]} {[%emt 00:00:01]} O-O
{[%clk 00:14:35]} {[%emt 00:00:15]} 5. O-O {[%clk 00:15:01]} {[%emt 00:00:06]}
c5 {[%clk 00:14:14]} {[%emt 00:00:25]} 6. d4 {[%clk 00:14:44]} {[%emt
00:00:22]} d6 {[%clk 00:13:53]} {[%emt 00:00:26]} 7. Nc3 {[%clk 00:14:29]}
{[%emt 00:00:20]} Nc6 {[%clk 00:13:12]} {[%emt 00:00:47]} 8. dxc5 {[%clk
00:12:40]} {[%emt 00:01:54]} dxc5 {[%clk 00:13:08]} {[%emt 00:00:08]} 9. Be3
{[%clk 00:12:43]} {[%emt 00:00:02]} Qa5 {[%clk 00:12:24]} {[%emt 00:00:49]} 10.
Qa4 {[%clk 00:12:41]} {[%emt 00:00:07]} Qb6 {[%clk 00:09:29]} {[%emt 00:03:01]}
11. Qb5 {[%clk 00:12:28]} {[%emt 00:00:17]} Nd7 {[%clk 00:07:10]} {[%emt
00:02:24]} 12. Nd5 {[%clk 00:11:54]} {[%emt 00:00:38]} Qxb5 {[%clk 00:06:20]}
{[%emt 00:00:56]} 13. cxb5 {[%clk 00:11:58]} {[%emt 00:00:02]} Nd4 {[%clk
00:05:54]} {[%emt 00:00:31]} 14. Nxe7+ {[%clk 00:12:00]} {[%emt 00:00:03]} Kh8
{[%clk 00:05:57]} {[%emt 00:00:02]} 15. Rad1 {[%clk 00:09:09]} {[%emt
00:02:56]} Nxf3+ {[%clk 00:03:18]} {[%emt 00:02:44]} 16. Bxf3 {[%clk 00:09:12]}
{[%emt 00:00:02]} Ne5 {[%clk 00:02:58]} {[%emt 00:00:25]} 17. Bg2 {[%clk
00:06:58]} {[%emt 00:02:19]} c4 {[%clk 00:02:43]} {[%emt 00:00:21]} 18. Rc1
{[%clk 00:05:02]} {[%emt 00:02:00]} Rb8 {[%clk 00:02:12]} {[%emt 00:00:36]} 19.
a4 {[%clk 00:03:54]} {[%emt 00:01:13]} Be6 {[%clk 00:01:59]} {[%emt 00:00:18]}
20. Bxa7 {[%clk 00:03:40]} {[%emt 00:00:19]} Ra8 {[%clk 00:01:44]} {[%emt
00:00:20]} 21. Bc5 {[%clk 00:03:44]} {[%emt 00:00:01]} Rxa4 {[%clk 00:01:27]}
{[%emt 00:00:22]} 22. Bxb7 {[%clk 00:03:45]} {[%emt 00:00:03]} Nd7 {[%clk
00:01:14]} {[%emt 00:00:18]} 23. Ba3 {[%clk 00:03:04]} {[%emt 00:00:47]} c3
{[%clk 00:01:12]} {[%emt 00:00:08]} 24. Ra1 {[%clk 00:02:51]} {[%emt 00:00:17]}
Bb3 {[%clk 00:00:32]} {[%emt 00:00:45]} 25. bxc3 {[%clk 00:01:51]} {[%emt
00:01:05]} Bxc3 {[%clk 00:00:31]} {[%emt 00:00:06]} 26. Rac1 {[%clk 00:01:46]}
{[%emt 00:00:09]} Bd2 {[%clk 00:00:18]} {[%emt 00:00:19]} 27. Bb2+ {[%clk
00:01:49]} {[%emt 00:00:01]} f6 {[%clk 00:00:15]} {[%emt 00:00:08]} 28. Rc7
{[%clk 00:01:48]} {[%emt 00:00:06]} Ne5 {[%clk 00:00:12]} {[%emt 00:00:08]} 29.
Nd5 {[%clk 00:01:17]} {[%emt 00:00:35]} Bxd5 {[%clk 00:00:06]} {[%emt
00:00:12]} 30. Bxd5 {[%clk 00:01:20]} {[%emt 00:00:01]} Rb4 {[%clk 00:00:08]}
{[%emt 00:00:04]} 31. Ba3 {[%clk 00:01:24]} {[%emt 00:00:01]} 1-0

[Event "SS Manhem Chess Week 2019 Goteborg Open"]
[Site "Molnlycke kulturhus, Biblioteksgatan 2, Molnlycke, Sweden"]
[Date "2019.08.16"]
[Round "1.6"]
[White "Hattab, Hashim"]
[Black "Seo, Jung Min"]
[Result "0-1"]
[TimeControl "15 minutes + 5 seconds per move from move one (Round 1 - 4) / 90 minutes + 30 seconds per move from move one (Round 5 - 8)"]
[BlackTitle "FM"]
[WhiteFideId "1721798"]
[BlackFideId "1734687"]
[WhiteElo "1868"]
[BlackElo "2409"]

1. d4 {[%clk 00:15:07]} {[%emt 00:00:03]} d5 {[%clk 00:15:09]} 2. c4 {[%clk
00:15:09]} {[%emt 00:00:03]} c6 {[%clk 00:15:13]} 3. Nc3 {[%clk 00:15:11]}
{[%emt 00:00:04]} Nf6 {[%clk 00:15:16]} {[%emt 00:00:02]} 4. Nf3 {[%clk
00:15:14]} {[%emt 00:00:02]} e6 {[%clk 00:15:19]} {[%emt 00:00:03]} 5. e3
{[%clk 00:15:09]} {[%emt 00:00:09]} Nbd7 {[%clk 00:15:20]} {[%emt 00:00:04]} 6.
Bd3 {[%clk 00:15:07]} {[%emt 00:00:07]} dxc4 {[%clk 00:15:15]} {[%emt
00:00:10]} 7. Bxc4 {[%clk 00:15:10]} {[%emt 00:00:02]} b5 {[%clk 00:15:19]}
{[%emt 00:00:01]} 8. Bd3 {[%clk 00:15:13]} {[%emt 00:00:01]} a6 {[%clk
00:15:18]} {[%emt 00:00:06]} 9. Qe2 {[%clk 00:14:28]} {[%emt 00:00:50]} Bb7
{[%clk 00:15:20]} {[%emt 00:00:04]} 10. O-O {[%clk 00:13:29]} {[%emt 00:01:03]}
c5 {[%clk 00:15:24]} {[%emt 00:00:02]} 11. dxc5 {[%clk 00:13:17]} {[%emt
00:00:17]} Nxc5 {[%clk 00:15:27]} {[%emt 00:00:01]} 12. Bc2 {[%clk 00:13:16]}
{[%emt 00:00:06]} Be7 {[%clk 00:15:31]} {[%emt 00:00:02]} 13. a3 {[%clk
00:12:38]} {[%emt 00:00:44]} Rc8 {[%clk 00:15:22]} {[%emt 00:00:13]} 14. e4
{[%clk 00:12:35]} {[%emt 00:00:08]} O-O {[%clk 00:15:24]} {[%emt 00:00:03]} 15.
Bf4 {[%clk 00:12:02]} {[%emt 00:00:38]} Qb6 {[%clk 00:15:08]} {[%emt 00:00:21]}
16. h3 {[%clk 00:11:37]} {[%emt 00:00:29]} b4 {[%clk 00:15:03]} {[%emt
00:00:11]} 17. axb4 {[%clk 00:11:06]} {[%emt 00:00:36]} Qxb4 {[%clk 00:15:06]}
{[%emt 00:00:01]} 18. Bc1 {[%clk 00:10:21]} {[%emt 00:00:49]} Nb3 {[%clk
00:14:05]} {[%emt 00:01:07]} 19. Bxb3 {[%clk 00:10:01]} {[%emt 00:00:24]} Qxb3
{[%clk 00:14:09]} {[%emt 00:00:01]} 20. Bg5 {[%clk 00:09:03]} {[%emt 00:01:03]}
h6 {[%clk 00:14:07]} {[%emt 00:00:08]} 21. Bh4 {[%clk 00:08:59]} {[%emt
00:00:09]} g5 {[%clk 00:13:32]} {[%emt 00:00:40]} 22. Bg3 {[%clk 00:09:00]}
{[%emt 00:00:03]} Qc4 {[%clk 00:13:23]} {[%emt 00:00:15]} 23. Qe1 {[%clk
00:08:39]} {[%emt 00:00:25]} Rfd8 {[%clk 00:12:58]} {[%emt 00:00:32]} 24. Ra4
{[%clk 00:08:34]} {[%emt 00:00:10]} Qb3 {[%clk 00:12:53]} {[%emt 00:00:08]} 25.
Qa1 {[%clk 00:08:00]} {[%emt 00:00:40]} Nd7 {[%clk 00:12:34]} {[%emt 00:00:25]}
26. h4 {[%clk 00:07:52]} {[%emt 00:00:13]} Nc5 {[%clk 00:12:33]} {[%emt
00:00:06]} 27. Ra5 {[%clk 00:07:45]} {[%emt 00:00:12]} Qb6 {[%clk 00:12:17]}
{[%emt 00:00:21]} 28. Rxc5 {[%clk 00:07:10]} {[%emt 00:00:40]} Qxc5 {[%clk
00:12:18]} {[%emt 00:00:04]} 29. hxg5 {[%clk 00:07:13]} {[%emt 00:00:01]} hxg5
{[%clk 00:12:22]} {[%emt 00:00:01]} 30. Re1 {[%clk 00:06:45]} {[%emt 00:00:33]}
Rd3 {[%clk 00:12:15]} {[%emt 00:00:13]} 31. Bh2 {[%clk 00:05:59]} {[%emt
00:00:51]} Rcd8 {[%clk 00:12:03]} {[%emt 00:00:17]} 32. Qc1 {[%clk 00:05:31]}
{[%emt 00:00:32]} g4 {[%clk 00:11:52]} {[%emt 00:00:16]} 33. Ne5 {[%clk
00:03:54]} {[%emt 00:01:41]} g3 {[%clk 00:11:45]} {[%emt 00:00:13]} 34. Qf4
{[%clk 00:03:58]} {[%emt 00:00:01]} gxf2+ {[%clk 00:11:15]} {[%emt 00:00:35]}
35. Qxf2 {[%clk 00:03:45]} {[%emt 00:00:18]} Rd2 {[%clk 00:11:13]} {[%emt
00:00:07]} 36. Ne2 {[%clk 00:03:11]} {[%emt 00:00:39]} Qxf2+ {[%clk 00:11:16]}
{[%emt 00:00:03]} 37. Kxf2 {[%clk 00:03:15]} {[%emt 00:00:01]} Rxb2 {[%clk
00:11:17]} {[%emt 00:00:04]} 38. Kf3 {[%clk 00:03:15]} {[%emt 00:00:05]} Rb3+
{[%clk 00:11:20]} {[%emt 00:00:03]} 39. Kf4 {[%clk 00:03:02]} {[%emt 00:00:17]}
Bd6 {[%clk 00:11:22]} {[%emt 00:00:04]} 40. Kg5 {[%clk 00:02:40]} {[%emt
00:00:27]} Rb5 {[%clk 00:11:23]} {[%emt 00:00:04]} 41. Kf6 {[%clk 00:02:33]}
{[%emt 00:00:11]} Bf8 {[%clk 00:11:05]} {[%emt 00:00:24]} 42. Nxf7 {[%clk
00:02:21]} {[%emt 00:00:16]} Bg7+ {[%clk 00:11:09]} {[%emt 00:00:02]} 43. Kxe6
{[%clk 00:02:02]} {[%emt 00:00:24]} Bc8+ {[%clk 00:11:11]} {[%emt 00:00:03]} 44.
Ke7 {[%clk 00:01:42]} {[%emt 00:00:25]} Rd7+ {[%clk 00:11:14]} {[%emt
00:00:01]} 0-1